fUST/lending_fUST_20241201
["ID","MTS","AMOUNT","RATE_DAILY","PERIOD"]
[343891101,1733004636491,-2080.07,0.00024657,3]
[343891102,1733004636502,-526.62,0.00024657,3]
[343891103,1733004636512,-500.0,0.00024657,3]
[343891104,1733004636522,-500.0,0.00024657,3]
[343891105,1733004636532,-753.75,0.00024657,3]
[343891106,1733004636543,-2933.37,0.00024657,3]
[343891107,1733004636553,-512.47048634,0.00024657,3]
[343891108,1733004636564,-500.0,0.00024657,3]
[343891109,1733004636574,-6588.74,0.00024657,3]
[343891110,1733004636584,-1396.58,0.00024657,3]
[343891111,1733004636595,-574.73553057,0.00024657,3]
[343891112,1733004636605,-500.0,0.00024657,3]
[343891113,1733004636616,-500.0,0.00024657,3]
[343891114,1733004636626,-500.0,0.00024657,3]
[343891115,1733004636635,-500.0,0.00024657,3]
[343891116,1733004636645,-500.0,0.00024657,3]
[343891117,1733004636655,-500.0,0.00024657,3]
[343891118,1733004636666,-500.0,0.00024657,3]
[343891119,1733004636676,-524.46,0.00024657,3]
[343891120,1733004636686,-500.0,0.00024657,3]
[343891121,1733004636697,-1724.99,0.00024657,3]
[343891122,1733004636708,-3339.25,0.00024657,3]
[343891123,1733004636718,-291.00441856,0.00024657,3]
[343891124,1733004636728,-500.0,0.00024657,3]
[343891125,1733004636738,-529.58155162,0.00024657,3]
[343891126,1733004636748,-500.0,0.00024657,3]
[343891127,1733004636758,-738.57,0.00024657,3]
[343891128,1733004636769,-500.0,0.00024657,3]
[343891129,1733004636779,-500.0,0.00024657,3]
[343891130,1733004636788,-521.03,0.00024657,3]
[343891131,1733004636798,-811.37,0.00024657,3]
[343891132,1733004636807,-1157.48,0.00024657,3]
[343891133,1733004636817,-500.0,0.00024657,3]
[343891134,1733004636826,-500.0,0.00024657,3]
[343891135,1733004636836,-500.0,0.00024657,3]
[343891136,1733004636845,-500.0,0.00024657,3]
[343891137,1733004636855,-151.0,0.00024657,7]
[343891138,1733004636865,-1336.56,0.00024657,3]
[343891139,1733004636874,-500.0,0.00024657,3]
[343891140,1733004636883,-500.0,0.00024657,3]
[343891141,1733004636897,-151.0,0.00024657,7]
[343891142,1733004636907,-500.0,0.00024657,3]
[343891143,1733004636916,-1503.46,0.00024657,3]
[343891144,1733004636926,-380.0,0.00024658,2]
[343891145,1733004636936,-209.951271,0.00024658,2]
[343891146,1733004636946,-502.13838794,0.00024673,2]
[343891147,1733004636958,-500.0,0.00024673,2]
[343891148,1733004636968,-500.0,0.00024673,2]
[343891149,1733004636979,-241.8168679,0.00024673,2]
[343891150,1733004636989,-187.0,0.000249,2]
[343891151,1733004636999,-1090.91822868,0.000249,2]
[343891152,1733004637009,-957.71077328,0.0002493,2]
[343891153,1733004637019,-503.19061678,0.00024931,3]
[343891154,1733004637029,-500.0,0.00024931,3]
[343891155,1733004637039,-500.0,0.00024931,3]
[343891156,1733004637049,-606.48735687,0.00024931,3]
[343891157,1733004637058,-501.33753334,0.00024931,3]
[343891158,1733004637068,-500.0,0.00024931,3]
[343891159,1733004637078,-151.0,0.00024931,7]
[343891160,1733004637088,-151.0,0.00024931,7]
[343891161,1733004637098,-151.0,0.00024931,7]
[343891162,1733004637108,-151.0,0.00024931,7]
[343891163,1733004637118,-500.0,0.00024931,3]
[343891164,1733004637128,-500.0,0.00024931,3]
[343891165,1733004637138,-500.0,0.00024931,3]
[343891166,1733004637147,-500.0,0.00024931,3]
[343891167,1733004637157,-500.0,0.00024931,3]
[343891168,1733004637167,-198.762286,0.00024931,7]
[343891169,1733004637177,-198.762286,0.00024931,7]
[343891170,1733004637187,-198.762286,0.00024931,7]
[343891171,1733004637197,-198.762286,0.00024931,7]
[343891172,1733004637208,-198.762286,0.00024931,7]
[343891173,1733004637217,-198.762286,0.00024931,7]
[343891174,1733004637227,-198.762286,0.00024931,7]
[343891175,1733004637236,-198.762286,0.00024931,7]
[343891176,1733004637246,-198.762286,0.00024931,7]
[343891177,1733004637255,-198.762286,0.00024931,7]
[343891178,1733004637265,-500.0,0.00024931,3]
[343891179,1733004637344,-500.0,0.00024931,3]
[343891180,1733004637353,-500.0,0.00024931,3]
[343891181,1733004637363,-500.0,0.00024931,3]
[343891182,1733004637372,-500.0,0.00024931,3]
[343891183,1733004637381,-500.0,0.00024931,3]
[343891184,1733004637390,-500.0,0.00024931,3]
[343891185,1733004637399,-418.37832682,0.00024931,3]
[343891186,1733004637408,-553.62012838,0.00024931,3]
[343891187,1733004637417,-500.0,0.00024931,3]
[343891188,1733004637426,-500.0,0.00024931,3]
[343891189,1733004637435,-500.0,0.00024931,3]
[343891190,1733004637444,-500.0,0.00024931,3]
[343891191,1733004637454,-500.0,0.00024931,3]
[343891192,1733004637463,-500.0,0.00024931,3]
[343891193,1733004637472,-500.0,0.00024931,3]
[343891194,1733004637481,-500.0,0.00024931,3]
[343891195,1733004637490,-500.0,0.00024931,3]
[343891196,1733004637498,-500.0,0.00024931,3]
[343891197,1733004637508,-500.0,0.00024931,3]
[343891198,1733004637517,-500.0,0.00024931,3]
[343891199,1733004637526,-500.0,0.00024931,3]
[343891200,1733004637535,-1069.12,0.00024931,3]
[343891201,1733004637545,-500.0,0.00024931,3]
[343891202,1733004637555,-500.0,0.00024931,3]
[343891203,1733004637564,-737.28,0.00024931,3]
[343891204,1733004637573,-508.03,0.00024931,3]
[343891205,1733004637582,-500.0,0.00024931,3]
[343891206,1733004637591,-1026.82,0.00024931,3]
[343891207,1733004637600,-524.40347482,0.00024931,3]
[343891208,1733004637609,-500.0,0.00024931,3]
[343891209,1733004637618,-917.89,0.00024931,3]
[343891210,1733004637627,-500.0,0.00024931,3]
[343891211,1733004637636,-504.72823017,0.00024931,3]
[343891212,1733004637646,-500.0,0.00024931,3]
[343891213,1733004637655,-500.0,0.00024931,3]
[343891214,1733004637668,-500.0,0.00024931,3]
[343891215,1733004637677,-507.60469973,0.00024931,3]
[343891216,1733004637686,-500.0,0.00024931,3]
[343891217,1733004637695,-560.97651128,0.00024931,3]
[343891218,1733004637707,-502.18388801,0.00024931,3]
[343891219,1733004637718,-500.0,0.00024931,3]
[343891220,1733004637727,-545.58952653,0.00024931,3]
[343891221,1733004637736,-500.0,0.00024931,3]
[343891222,1733004637745,-500.0,0.00024931,3]
[343891223,1733004637754,-500.0,0.00024931,3]
[343891224,1733004637763,-946.45,0.00024931,3]
[343891225,1733004637773,-500.0,0.00024931,3]
[343891226,1733004637782,-500.0,0.00024931,3]
[343891227,1733004637791,-500.0,0.00024931,3]
[343891228,1733004637801,-500.0,0.00024931,3]
[343891229,1733004637811,-508.93733284,0.00024931,3]
[343891230,1733004637820,-817.71,0.00024931,3]
[343891231,1733004637829,-500.0,0.00024931,3]
[343891233,1733004637839,-502.45337159,0.00024931,3]
[343891234,1733004637848,-500.0,0.00024931,3]
[343891235,1733004637857,-500.0,0.00024931,3]
[343891236,1733004637867,-529.80227583,0.00024931,3]
[343891237,1733004637876,-2297.0,0.00024931,3]
[343891238,1733004637888,-500.0,0.00024931,3]
[343891239,1733004637898,-663.59,0.00024931,3]
[343891240,1733004637908,-500.0,0.00024931,3]
[343891241,1733004637918,-1478.9,0.00024931,3]
[343891242,1733004637931,-316.74279187,0.00024931,3]
[343891251,1733004638154,-183.25720813,0.00024931,3]
[343891252,1733004638165,-500.0,0.00024931,3]
[343891253,1733004638174,-1000.0,0.00024931,10]
[343891254,1733004638184,-679.5257973,0.00024931,3]
[343891255,1733004638196,-294.9242027,0.00024931,3]
[343891256,1733004638207,-506.57069728,0.00024931,3]
[343891257,1733004638217,-500.0,0.00024931,3]
[343891258,1733004638227,-500.0,0.00024931,3]
[343891259,1733004638236,-884.23,0.00024931,3]
[343891261,1733004638246,-500.0,0.00024931,3]
[343891263,1733004638255,-500.0,0.00024931,3]
[343891265,1733004638265,-500.0,0.00024931,3]
[343891266,1733004638275,-500.0,0.00024931,3]
[343891267,1733004638284,-500.0,0.00024931,3]
[343891268,1733004638294,-500.0,0.00024931,3]
[343891269,1733004638304,-500.0,0.00024931,3]
[343891270,1733004638314,-500.0,0.00024931,3]
[343891271,1733004638323,-500.0,0.00024931,3]
[343891272,1733004638333,-821.66,0.00024931,3]
[343891273,1733004638342,-500.0,0.00024931,3]
[343891274,1733004638352,-656.68,0.00024931,3]
[343891275,1733004638362,-200.0,0.00024931,3]
[343891276,1733004638371,-267.90165989,0.00024931,3]
[343891277,1733004638384,-232.09834011,0.00024931,3]
[343891278,1733004638394,-500.0,0.00024931,3]
[343891279,1733004638403,-500.0,0.00024931,3]
[343891280,1733004638413,-500.0,0.00024931,3]
[343891281,1733004638423,-500.0,0.00024931,3]
[343891282,1733004638432,-500.0,0.00024931,3]
[343891283,1733004638442,-500.0,0.00024931,3]
[343891284,1733004638452,-500.0,0.00024931,3]
[343891285,1733004638463,-500.0,0.00024931,3]
[343891286,1733004638473,-500.0,0.00024931,3]
[343891287,1733004638482,-665.13,0.00024931,3]
[343891288,1733004638491,-500.0,0.00024931,3]
[343891289,1733004638501,-25.35943544,0.00024931,3]
[343891290,1733004639241,-151.0,0.00024657,7]
[343891291,1733004639256,-151.0,0.00024657,7]
[343891292,1733004639271,-500.0,0.00024657,3]
[343891293,1733004639285,-1169.27083333,0.00024657,3]
[343891294,1733004639300,-1169.27083333,0.00024657,3]
[343891295,1733004639314,-1169.27083333,0.00024657,3]
[343891296,1733004639329,-474.64056456,0.00024931,3]
[343891297,1733004639343,-500.0,0.00024931,3]
[343891298,1733004639357,-581.04,0.00024931,3]
[343891299,1733004639372,-576.38138788,0.00024931,3]
[343891300,1733004639386,-500.0,0.00024931,3]
[343891301,1733004639396,-500.0,0.00024931,3]
[343891302,1733004639405,-953.96,0.00024931,3]
[343891303,1733004639415,-1744.41,0.00024931,3]
[343891304,1733004639424,-1703.16,0.00024931,3]
[343891305,1733004639433,-500.0,0.00024931,3]
[343891306,1733004639443,-1189.03,0.00024931,3]
[343891307,1733004639452,-500.0,0.00024931,3]
[343891308,1733004639463,-500.0,0.00024931,3]
[343891309,1733004639602,-500.0,0.00024931,3]
[343891310,1733004639620,-501.27192557,0.00024931,3]
[343891311,1733004639631,-1534.89,0.00024931,3]
[343891312,1733004639640,-500.0,0.00024931,3]
[343891313,1733004639650,-500.0,0.00024931,3]
[343891314,1733004639659,-500.0,0.00024931,3]
[343891315,1733004639668,-500.0,0.00024931,3]
[343891316,1733004639678,-503.75,0.00024931,3]
[343891317,1733004639688,-500.0,0.00024931,3]
[343891318,1733004639698,-500.0,0.00024931,3]
[343891319,1733004639708,-500.0,0.00024931,3]
[343891320,1733004639717,-500.0,0.00024931,3]
[343891321,1733004639727,-500.0,0.00024931,3]
[343891322,1733004639736,-500.0,0.00024931,3]
[343891323,1733004639745,-561.55,0.00024931,3]
[343891324,1733004639754,-500.0,0.00024931,3]
[343891325,1733004639763,-500.0,0.00024931,3]
[343891326,1733004639772,-200.0,0.00024931,3]
[343891327,1733004639781,-724.23,0.00024931,3]
[343891328,1733004639791,-500.0,0.00024931,3]
[343891329,1733004639800,-583.15,0.00024931,3]
[343891330,1733004639809,-513.50898055,0.00024931,3]
[343891331,1733004639818,-206.37575369,0.00024931,3]
[343891332,1733004639827,-2481.72,0.00024931,3]
[343891333,1733004639836,-500.0,0.00024931,2]
[343891334,1733004639846,-500.0,0.00024931,3]
[343891335,1733004639855,-500.0,0.00024931,3]
[343891336,1733004639864,-3056.09,0.00024931,3]
[343891337,1733004639873,-500.0,0.00024931,3]
[343891338,1733004639882,-868.94,0.00024931,3]
[343891339,1733004639894,-500.0,0.00024931,3]
[343891340,1733004639902,-500.0,0.00024931,3]
[343891341,1733004639911,-678.01,0.00024931,3]
[343891342,1733004639921,-500.0,0.00024931,3]
[343891343,1733004639931,-628.97,0.00024931,3]
[343891344,1733004639940,-1380.11,0.00024931,3]
[343891345,1733004639950,-701.26,0.00024931,3]
[343891346,1733004639961,-500.0,0.00024931,3]
[343891347,1733004639971,-500.0,0.00024931,3]
[343891348,1733004639981,-1174.8,0.00024931,3]
[343891349,1733004639991,-537.84060498,0.00024931,3]
[343891350,1733004640000,-500.0,0.00024931,3]
[343891351,1733004640010,-910.31,0.00024931,3]
[343891352,1733004640019,-500.0,0.00024931,3]
[343891353,1733004640029,-151.0,0.00024931,7]
[343891355,1733004640039,-151.0,0.00024931,7]
[343891356,1733004640048,-151.0,0.00024931,7]
[343891357,1733004640057,-246.188647,0.00024931,7]
[343891358,1733004640066,-1495.14,0.00024931,3]
[343891359,1733004640076,-500.0,0.00024931,3]
[343891360,1733004640085,-500.0,0.00024931,3]
[343891361,1733004640106,-648.85,0.00024931,3]
[343891362,1733004640117,-500.0,0.00024931,3]
[343891364,1733004640128,-500.0,0.00024931,3]
[343891365,1733004640138,-1701.11,0.00024931,3]
[343891367,1733004640148,-500.0,0.00024931,3]
[343891368,1733004640158,-500.0,0.00024931,3]
[343891369,1733004640168,-500.0,0.00024931,3]
[343891370,1733004640179,-500.0,0.00024931,3]
[343891372,1733004640189,-500.0,0.00024931,3]
[343891374,1733004640199,-500.0,0.00024931,3]
[343891375,1733004640211,-725.62,0.00024931,3]
[343891376,1733004640221,-500.0,0.00024931,3]
[343891377,1733004640232,-2197.46,0.00024931,3]
[343891378,1733004640242,-1063.13,0.00024931,3]
[343891379,1733004640253,-3353.41,0.00024931,3]
[343891380,1733004640264,-500.0,0.00024931,3]
[343891381,1733004640275,-500.0,0.00024931,3]
[343891382,1733004640285,-553.99,0.00024931,3]
[343891383,1733004640295,-500.0,0.00024931,3]
[343891384,1733004640305,-500.0,0.00024931,3]
[343891385,1733004640315,-592.23,0.00024931,3]
[343891387,1733004640324,-500.0,0.00024931,3]
[343891388,1733004640334,-500.0,0.00024931,3]
[343891389,1733004640344,-500.0,0.00024931,3]
[343891390,1733004640354,-500.0,0.00024931,3]
[343891391,1733004640364,-174.219893,0.00024931,7]
[343891392,1733004640374,-174.219893,0.00024931,7]
[343891393,1733004640383,-174.219893,0.00024931,7]
[343891394,1733004640393,-174.219893,0.00024931,7]
[343891395,1733004640403,-631.89,0.00024931,3]
[343891396,1733004640413,-174.219893,0.00024931,7]
[343891397,1733004640422,-174.219893,0.00024931,7]
[343891398,1733004640432,-174.219893,0.00024931,7]
[343891399,1733004640442,-174.219893,0.00024931,7]
[343891400,1733004640452,-296.48943737,0.00024931,3]
[343891401,1733004640464,-500.0,0.00024931,3]
[343891402,1733004640474,-500.0,0.00024931,2]
[343891403,1733004640483,-500.0,0.00024931,3]
[343891404,1733004640493,-500.0,0.00024931,3]
[343891405,1733004640503,-233.278511,0.00024931,7]
[343891406,1733004640513,-233.278511,0.00024931,7]
[343891407,1733004640522,-233.278511,0.00024931,7]
[343891408,1733004640532,-233.278511,0.00024931,7]
[343891409,1733004640542,-500.0,0.00024931,3]
[343891410,1733004640552,-233.278511,0.00024931,7]
[343891411,1733004640562,-233.278511,0.00024931,7]
[343891412,1733004640571,-500.0,0.00024931,3]
[343891413,1733004640581,-233.278511,0.00024931,7]
[343891414,1733004640590,-1101.41,0.00024931,2]
[343891415,1733004640600,-233.278511,0.00024931,7]
[343891416,1733004640610,-500.0,0.00024931,3]
[343891417,1733004640619,-1903.85,0.00024931,3]
[343891418,1733004640629,-500.0,0.00024931,3]
[343891419,1733004640639,-500.0,0.00024931,3]
[343891420,1733004640648,-500.0,0.00024931,3]
[343891421,1733004640658,-500.0,0.00024931,3]
[343891422,1733004640668,-500.0,0.00024931,3]
[343891423,1733004640677,-500.0,0.00024931,3]
[343891424,1733004640687,-500.0,0.00024931,3]
[343891425,1733004640697,-542.38,0.00024931,3]
[343891426,1733004640707,-562.24,0.00024931,3]
[343891427,1733004640716,-500.0,0.00024931,3]
[343891428,1733004640726,-500.0,0.00024931,3]
[343891429,1733004640735,-500.0,0.00024931,3]
[343891430,1733004640745,-500.0,0.00024931,3]
[343891431,1733004640755,-1954.29,0.00024931,3]
[343891432,1733004640764,-500.0,0.00024931,3]
[343891433,1733004640774,-787.16,0.00024931,3]
[343891434,1733004640785,-500.0,0.00024931,3]
[343891435,1733004640795,-500.0,0.00024931,3]
[343891436,1733004640805,-502.65,0.00024931,3]
[343891437,1733004640814,-500.0,0.00024931,3]
[343891438,1733004640823,-500.0,0.00024931,3]
[343891439,1733004640833,-500.0,0.00024931,3]
[343891440,1733004640842,-500.0,0.00024931,3]
[343891441,1733004640852,-500.0,0.00024931,3]
[343891442,1733004640861,-564.58582052,0.00024931,3]
[343891443,1733004640871,-430.49227303,0.00024931,3]
[343891444,1733004640880,-500.0,0.00024931,3]
[343891445,1733004640892,-500.0,0.00024931,3]
[343891446,1733004640902,-2790.51,0.00024931,3]
[343891447,1733004640912,-500.0,0.00024931,3]
[343891448,1733004640922,-659.06,0.00024931,3]
[343891449,1733004640932,-296.85562914,0.00024931,3]
[343891450,1733004640943,-500.0,0.00024931,3]
[343891451,1733004640953,-500.0,0.00024931,3]
[343891452,1733004640964,-500.0,0.00024931,3]
[343891453,1733004640974,-2637.41,0.00024931,3]
[343891454,1733004640985,-500.0,0.00024931,3]
[343891455,1733004640994,-500.0,0.00024931,3]
[343891456,1733004641005,-674.25,0.00024931,3]
[343891457,1733004641015,-500.0,0.00024931,3]
[343891458,1733004641025,-500.0,0.00024931,3]
[343891459,1733004641034,-500.0,0.00024931,3]
[343891460,1733004641044,-500.0,0.00024931,3]
[343891461,1733004641054,-500.0,0.00024931,3]
[343891462,1733004641063,-1701.82,0.00024931,3]
[343891463,1733004641073,-500.0,0.00024931,3]
[343891464,1733004641083,-658.33,0.00024931,3]
[343891465,1733004641092,-756.89,0.00024931,3]
[343891466,1733004641102,-500.0,0.00024931,3]
[343891467,1733004641112,-500.0,0.00024931,3]
[343891468,1733004641122,-500.0,0.00024931,3]
[343891469,1733004641131,-1240.85,0.00024931,3]
[343891470,1733004641141,-646.63542523,0.00024931,3]
[343891471,1733004641151,-500.0,0.00024931,3]
[343891472,1733004641160,-2080.07,0.00024931,3]
[343891473,1733004641169,-526.62,0.00024931,3]
[343891474,1733004641179,-500.0,0.00024931,3]
[343891475,1733004641189,-500.0,0.00024931,3]
[343891476,1733004641199,-753.75,0.00024931,3]
[343891477,1733004641210,-2933.37,0.00024931,3]
[343891478,1733004641224,-500.0,0.00024931,3]
[343891479,1733004641234,-6588.74,0.00024931,3]
[343891480,1733004641243,-1396.58,0.00024931,3]
[343891481,1733004641253,-500.0,0.00024931,3]
[343891482,1733004641263,-500.0,0.00024931,3]
[343891483,1733004641272,-500.0,0.00024931,3]
[343891484,1733004641282,-500.0,0.00024931,3]
[343891485,1733004641292,-500.0,0.00024931,3]
[343891486,1733004641302,-500.0,0.00024931,3]
[343891487,1733004641311,-524.46,0.00024931,3]
[343891488,1733004641321,-500.0,0.00024931,3]
[343891489,1733004641331,-1724.99,0.00024931,3]
[343891490,1733004641341,-3339.25,0.00024931,3]
[343891491,1733004641351,-500.0,0.00024931,3]
[343891492,1733004641360,-150.17,0.00024931,3]
[343891493,1733004641370,-431.80291354,0.00024931,3]
[343891494,1733004641379,-738.57,0.00024931,3]
[343891495,1733004641389,-500.0,0.00024931,3]
[343891496,1733004641399,-500.0,0.00024931,3]
[343891497,1733004641408,-521.03,0.00024931,3]
[343891498,1733004641418,-811.37,0.00024931,3]
[343891499,1733004641427,-1157.48,0.00024931,3]
[343891500,1733004641437,-500.0,0.00024931,3]
[343891501,1733004641448,-500.0,0.00024931,3]
[343891502,1733004641459,-500.0,0.00024931,3]
[343891503,1733004641468,-500.0,0.00024931,3]
[343891504,1733004641478,-1336.56,0.00024931,3]
[343891505,1733004641487,-500.0,0.00024931,3]
[343891506,1733004641497,-500.0,0.00024931,3]
[343891507,1733004641597,-151.0,0.00024931,7]
[343891508,1733004641607,-151.0,0.00024931,7]
[343891509,1733004641618,-500.0,0.00024931,3]
[343891510,1733004641628,-151.0,0.00024931,7]
[343891511,1733004641638,-151.0,0.00024931,7]
[343891512,1733004641647,-1503.46,0.00024931,3]
[343891513,1733004641657,-263.255215,0.00024931,7]
[343891514,1733004641668,-500.0,0.00024931,3]
[343891515,1733004641678,-500.0,0.00024973,2]
[343891516,1733004641688,-500.0,0.00024973,2]
[343891517,1733004641698,-500.0,0.00024973,2]
[343891518,1733004641708,-500.0,0.00024973,2]
[343891519,1733004641717,-500.0,0.00024973,2]
[343891520,1733004641727,-500.0,0.00024973,2]
[343891521,1733004641736,-500.0,0.00024973,2]
[343891522,1733004641746,-500.65911155,0.00024973,2]
[343891523,1733004641756,-500.0,0.00024973,2]
[343891524,1733004641766,-556.26444428,0.00024973,2]
[343891525,1733004641775,-500.0,0.00024973,2]
[343891526,1733004641785,-263.40478603,0.00024973,2]
[343891527,1733004641794,-5800.88825765,0.00025,2]
[343891528,1733004641804,-70687.84072239,0.00025,2]
[343891529,1733004641813,-500.0,0.00025,2]
[343891530,1733004641823,-300.0,0.00025,2]
[343891531,1733004641833,-277.1,0.00025,2]
[343891532,1733004641842,-300.0,0.00025,2]
[343891533,1733004641851,-277.099999,0.00025,2]
[343891534,1733004641861,-300.0,0.00025,2]
[343891535,1733004641871,-277.099999,0.00025,2]
[343891536,1733004641881,-1000.0,0.00025,25]
[343891537,1733004641891,-2325.10484418,0.00025,2]
[343891538,1733004641903,-1620.94,0.00025,30]
[343891539,1733004641913,-10847.04833168,0.00025,2]
[343891540,1733004641923,-1043.09287421,0.00025,2]
[343891541,1733004641932,-198.762286,0.00025,7]
[343891542,1733004641943,-198.762286,0.00025,7]
[343891543,1733004641958,-518.0,0.00025,2]
[343891544,1733004641968,-174.219893,0.00025,7]
[343891545,1733004641978,-174.219893,0.00025,7]
[343891546,1733004641987,-174.219893,0.00025,7]
[343891547,1733004641997,-174.219893,0.00025,7]
[343891548,1733004642006,-233.278511,0.00025,7]
[343891549,1733004642015,-233.278511,0.00025,7]
[343891550,1733004642025,-302.69733596,0.00025,2]
[343891551,1733004642035,-302.15269898,0.00025,2]
[343891552,1733004642045,-151.0,0.00025,7]
[343891553,1733004642054,-151.0,0.00025,7]
[343891554,1733004642063,-169.274,0.0002506,9]
[343891555,1733004642072,-2272.71366762,0.0002509,2]
[343891556,1733004642082,-10000.0,0.00025205,5]
[343891557,1733004642092,-150.17,0.00025205,3]
[343891558,1733004642102,-231.65847669,0.00025205,3]
[343891559,1733004642111,-599.93311304,0.00025205,3]
[343891560,1733004642120,-500.0,0.00025205,3]
[343891561,1733004642130,-500.0,0.00025205,3]
[343891562,1733004642139,-500.0,0.00025205,3]
[343891563,1733004642149,-500.0,0.00025205,3]
[343891564,1733004642158,-198.762286,0.00025205,7]
[343891565,1733004642167,-198.762286,0.00025205,7]
[343891566,1733004642176,-198.762286,0.00025205,7]
[343891567,1733004642186,-198.762278,0.00025205,7]
[343891568,1733004642195,-505.60099459,0.00025205,3]
[343891569,1733004642204,-525.06410451,0.00025205,3]
[343891570,1733004642214,-500.0,0.00025205,3]
[343891571,1733004642223,-500.0,0.00025205,3]
[343891572,1733004642233,-516.01041065,0.00025205,3]
[343891573,1733004642242,-500.0,0.00025205,3]
[343891574,1733004642251,-500.0,0.00025205,3]
[343891575,1733004642261,-500.0,0.00025205,3]
[343891576,1733004642270,-500.0,0.00025205,3]
[343891577,1733004642279,-500.0,0.00025205,3]
[343891578,1733004642289,-500.0,0.00025205,3]
[343891579,1733004642298,-500.0,0.00025205,3]
[343891580,1733004642308,-500.0,0.00025205,3]
[343891581,1733004642317,-380.70223758,0.00025205,3]
[343891582,1733004642327,-500.0,0.00025205,3]
[343891583,1733004642336,-500.0,0.00025205,3]
[343891584,1733004642345,-500.0,0.00025205,3]
[343891585,1733004642354,-500.0,0.00025205,3]
[343891586,1733004642364,-500.0,0.00025205,3]
[343891587,1733004642373,-500.0,0.00025205,3]
[343891588,1733004642383,-1069.12,0.00025205,3]
[343891589,1733004642392,-500.0,0.00025205,3]
[343891590,1733004642401,-500.0,0.00025205,3]
[343891591,1733004642410,-737.28,0.00025205,3]
[343891592,1733004642420,-508.03,0.00025205,3]
[343891593,1733004642429,-500.0,0.00025205,3]
[343891594,1733004642439,-1026.82,0.00025205,3]
[343891595,1733004642448,-500.0,0.00025205,3]
[343891596,1733004642458,-917.89,0.00025205,3]
[343891597,1733004642467,-500.0,0.00025205,3]
[343891598,1733004642477,-500.0,0.00025205,3]
[343891599,1733004642487,-500.0,0.00025205,3]
[343891600,1733004642496,-500.0,0.00025205,3]
[343891601,1733004642505,-234.56718359,0.00025205,3]
[343891602,1733004642515,-234.81179467,0.00025205,3]
[343891603,1733004642525,-500.0,0.00025205,3]
[343891604,1733004642534,-500.0,0.00025205,3]
[343891605,1733004642544,-500.0,0.00025205,3]
[343891606,1733004642554,-946.45,0.00025205,3]
[343891607,1733004642563,-287.62940351,0.00025205,3]
[343891608,1733004642572,-500.0,0.00025205,3]
[343891609,1733004642582,-500.0,0.00025205,3]
[343891610,1733004642591,-500.0,0.00025205,3]
[343891611,1733004642601,-817.71,0.00025205,3]
[343891612,1733004642610,-500.0,0.00025205,3]
[343891613,1733004642620,-500.0,0.00025205,3]
[343891614,1733004642629,-2297.0,0.00025205,3]
[343891615,1733004642639,-500.0,0.00025205,3]
[343891616,1733004642648,-663.59,0.00025205,3]
[343891617,1733004642658,-277.25611589,0.00025205,3]
[343891618,1733004642667,-1478.9,0.00025205,3]